bitfinex/quotes_ETHUSD_20240614
["timestamp","ask_amount","ask_price","bid_price","bid_amount"]
[1718388903107,2.96877,3368.4,3367.8,2.96926]
[1718388903415,2.96901,3368.2,3367.9,2.9692]
[1718388903798,2.96862,3368.6,3368.0,2.96911]
[1718388904130,2.969,3368.2,3367.8,2.96929]
[1718388904622,2.969,3368.2,3367.8,3.563162]
[1718388905008,2.969,3368.2,3367.9,2.96919]
[1718388905221,2.96887,3368.3,3367.9,2.96919]
[1718388905440,2.93471639,3368.3,3367.9,2.96918]
[1718388905944,2.96879,3368.4,3367.2,2.96974]
[1718388905945,2.9692,3367.9,3367.2,2.96974]
[1718388906145,2.96938,3367.7,3367.2,3.90745385]
[1718388906315,2.96949,3367.6,3367.3,2.96973]
[1718388906499,2.96949,3367.6,3367.2,0.93765385]
[1718388906500,2.96957,3367.5,3367.2,3.90740385]
[1718388906699,2.96949,3367.6,3367.2,3.90740385]
[1718388906898,2.96949,3367.6,3367.3,2.96973]
[1718388907100,2.9694,3367.7,3367.3,2.96972]
[1718388907299,2.96907,3368.1,3367.3,2.96972]
[1718388907300,2.96922,3367.9,3367.3,3.65743739]
[1718388907500,2.96871,3368.5,3367.6,2.96943]
[1718388907702,12.49,3369.4,3368.5,2.9686]
[1718388907703,2.96839,3368.9,3368.5,2.9686]
[1718388907959,2.96812,3369.2,3368.6,0.03735477]
[1718388908103,2.96754,3369.8,3368.6,1.47079991]
[1718388908302,2.9676,3369.8,3368.9,2.96831]
[1718388908533,2.9676,3369.8,3369.3,2.96789]
[1718388908735,2.96768,3369.7,3369.3,2.96789]
[1718388909136,2.96737,3370.0,3369.5,2.96772]
[1718388909347,15.45609,3371.5,3369.6,2.96766]
[1718388909348,2.96695,3370.5,3369.6,2.96766]
[1718388909664,2.96695,3370.5,3370.0,2.96727]
[1718388909939,2.96695,3370.5,3370.2,2.96717]
[1718388910116,2.96695,3370.5,3370.0,2.96735]
[1718388910117,2.96695,3370.5,3370.1,2.96725]
[1718388910538,2.96683,3370.6,3370.1,2.96725]
[1718388910704,2.96717,3370.3,3369.6,0.44011051]
[1718388910909,7.31,3371.6,3370.5,2.96684]
[1718388911108,7.31,3371.6,3371.3,2.96618]
[1718388911356,2.96586,3371.7,3371.3,2.96618]
[1718388911949,2.96551,3372.1,3371.7,2.96583]
[1718388912120,2.96551,3372.1,3371.7,2.96585]
[1718388912330,2.96537,3372.3,3371.3,2.96614]
[1718388912541,2.96578,3371.8,3371.5,2.96598]
[1718388912715,2.96561,3372.0,3371.5,2.96598]
[1718388912910,2.96554,3372.1,3371.5,2.96598]
[1718388913255,0.05414076,3372.0,3371.0,2.96639]
[1718388913423,2.7426,3372.4,3370.3,0.61463851]
[1718388913424,2.96676,3370.7,3370.5,0.012]
[1718388913624,2.96683,3370.6,3370.5,0.012]
[1718388913823,2.96646,3371.1,3370.5,0.012]
[1718388914052,2.96597,3371.6,3370.5,0.012]
[1718388914347,2.96641,3371.1,3370.7,2.96673]
[1718388914548,2.96651,3371.0,3370.5,2.97883]
[1718388914735,2.96657,3370.9,3370.5,2.97883]
[1718388914945,2.96676,3370.7,3370.5,0.012]
[1718388915238,2.96655,3371.0,3370.5,0.012]
[1718388915239,2.96683,3370.6,3370.5,0.012]
[1718388915552,5.93366,3370.6,3370.5,0.012]
[1718388915712,2.96683,3370.6,3370.5,0.012]
[1718388915909,2.96675,3370.7,3370.5,0.012]
[1718388916144,2.96664,3370.9,3370.5,0.012]
[1718388916311,2.96646,3371.1,3370.7,2.96673]
[1718388916722,2.9663,3371.3,3370.7,2.96673]
[1718388916951,2.96559,3372.1,3371.6,2.96588]
[1718388917250,2.96526,3372.4,3371.6,2.96588]
[1718388917251,2.96529,3372.4,3372.0,2.96559]
[1718388917455,5.93076,3372.3,3371.8,2.9657]
[1718388917613,5.93076,3372.3,3371.6,2.96587]
[1718388917614,2.96551,3372.1,3371.6,2.96587]
[1718388917811,2.96551,3372.1,3371.6,2.96586]
[1718388918120,2.96551,3372.1,3371.7,2.96586]
[1718388918449,2.96542,3372.2,3371.8,2.96575]
[1718388918852,2.96508,3372.6,3371.8,0.593161]
[1718388919056,2.9144,3373.2,3372.6,2.96506]
[1718388919057,2.96458,3373.2,3372.6,2.96506]
[1718388919217,2.96458,3373.2,3372.3,2.96526]
[1718388919419,2.96463,3373.1,3372.7,2.96496]
[1718388919617,2.96473,3373.0,3372.7,2.96496]
[1718388920158,2.96438,3373.4,3371.9,1.43344514]
[1718388920364,2.96438,3373.4,3372.8,2.96481]
[1718388920718,10.0795,3374.3,3373.1,2.96463]
[1718388920948,2.96427,3373.6,3373.2,2.9645]
[1718388921154,2.96427,3373.6,3372.3,2.96532]
[1718388921155,2.9639,3374.0,3373.4,2.96436]
[1718388921456,2.9639,3374.0,3373.5,2.96427]
[1718388921457,2.96402,3373.8,3373.5,2.96427]
[1718388921615,2.9639,3374.0,3373.5,2.96427]
[1718388921823,2.9639,3374.0,3373.6,2.96417]
[1718388922024,2.9639,3374.0,3373.5,2.96427]
[1718388922025,2.96403,3373.8,3373.5,2.96427]
[1718388922243,2.96413,3373.7,3373.3,2.96445]
[1718388922450,5.92793,3373.9,3373.4,2.96434]
[1718388922758,2.96405,3373.8,3373.4,2.96434]
[1718388923348,2.96464,3373.1,3372.6,2.96503]
[1718388923528,2.96472,3373.0,3372.2,2.9654]
[1718388923860,2.96481,3372.9,3372.5,2.96515]
[1718388924064,2.96481,3372.9,3372.1,3.0027]
[1718388924065,2.96524,3372.4,3371.5,5.72988]
[1718388924305,2.96466,3373.1,3372.0,2.96559]
[1718388924425,2.96466,3373.1,3371.8,4.39921514]
[1718388924426,0.05414076,3373.0,3371.9,2.96568]
[1718388924767,2.96498,3372.7,3372.3,2.96525]
[1718388925219,2.96508,3372.6,3372.1,2.96542]
[1718388925439,2.96508,3372.6,3372.0,1.43344514]
[1718388925638,2.96508,3372.6,3371.5,4.5439]
[1718388925639,2.96572,3371.9,3371.6,2.96594]
[1718388925864,2.96528,3372.4,3371.6,2.96594]
[1718388926077,0.05414076,3372.3,3370.9,2.7262]
[1718388926336,2.96639,3371.1,3370.5,2.96686]
[1718388926640,2.96639,3371.1,3370.7,2.96665]
[1718388926963,2.96664,3370.9,3370.3,2.8144]
[1718388927144,2.96639,3371.1,3370.4,4.40036514]
[1718388927653,2.96633,3371.2,3370.6,2.96682]
[1718388927865,2.96644,3371.1,3370.5,2.96691]
[1718388928189,2.96644,3371.1,3370.9,0.012]
[1718388928389,2.96647,3371.0,3370.9,0.012]
[1718388928686,8.95355076,3371.0,3370.9,0.012]
[1718388929122,11.95355076,3371.0,3370.9,0.012]
[1718388929289,14.92002076,3371.0,3370.9,0.012]
[1718388929454,11.95355076,3371.0,3370.9,0.012]
[1718388930750,2.96622,3371.3,3370.9,0.012]
[1718388930954,5.93294,3371.0,3370.9,0.012]
[1718388931162,8.89941,3371.0,3370.9,0.012]
[1718388931559,11.89941,3371.0,3370.9,0.012]
[1718388931760,5.96647,3371.0,3370.9,0.012]
[1718388932085,2.96613,3371.4,3371.1,2.96638]
[1718388932281,2.7389,3372.1,3371.0,2.96647]
[1718388932282,2.96604,3371.5,3371.0,2.96647]
[1718388932592,2.96604,3371.5,3370.9,0.012]
[1718388932593,2.9663,3371.2,3370.9,2.97855]
[1718388932897,2.96639,3371.1,3370.9,0.012]
[1718388933293,2.96621,3371.3,3371.0,2.96643]
[1718388933766,2.96632,3371.2,3370.9,0.012]
[1718388933968,2.96647,3371.0,3370.9,0.012]
[1718388934283,2.96636,3371.2,3370.9,0.012]
[1718388934479,2.96647,3371.0,3370.9,0.012]
[1718388934681,2.96639,3371.1,3370.9,0.012]
[1718388935460,3.0,3371.4,3370.9,0.012]
[1718388935699,7.31,3372.6,3370.9,0.012]
[1718388935700,2.966,3371.6,3371.2,2.96623]
[1718388935863,2.966,3371.6,3371.1,2.96638]
[1718388935864,2.96578,3371.8,3371.4,2.96611]
[1718388936066,2.96579,3371.8,3371.4,2.96611]
[1718388936500,2.96577,3371.8,3371.5,2.96596]
[1718388937064,2.96546,3372.2,3371.9,2.96567]
[1718388937386,2.96526,3372.4,3371.9,2.9656]
[1718388937574,2.96526,3372.4,3372.0,2.96557]
[1718388937764,2.96535,3372.3,3372.0,2.96557]
[1718388939067,2.96542,3372.2,3371.9,2.96568]
[1718388939263,2.96577,3371.8,3371.5,2.96603]
[1718388939564,2.96577,3371.8,3371.6,2.96593]
[1718388939778,2.96586,3371.7,3371.4,2.96603]
[1718388939979,2.96569,3371.9,3370.8,2.9847]
[1718388940178,2.96577,3371.8,3371.4,2.96605]
[1718388940598,2.96577,3371.8,3371.5,2.96601]
[1718388941721,2.96577,3371.8,3371.6,2.96593]
[1718388942518,2.96543,3372.2,3370.9,2.96648]
[1718388942519,0.05414076,3371.7,3370.9,2.96648]
[1718388942791,0.05414076,3371.7,3369.8,7.60998753]
[1718388942792,2.96668,3370.8,3370.5,2.96691]
[1718388943203,2.96673,3370.8,3370.1,2.96727]
[1718388943416,2.96648,3371.0,3370.5,2.96683]
[1718388943780,2.96648,3371.0,3370.6,2.96683]
[1718388944138,5.93304,3371.0,3370.5,2.96691]
[1718388944416,2.96634,3371.2,3370.5,2.9669]
[1718388944621,2.96662,3370.9,3370.6,2.96682]
[1718388944783,2.96649,3371.0,3370.6,2.96682]
[1718388945117,2.95449,3371.0,3370.7,2.96673]
[1718388945339,3.0,3371.5,3370.7,2.02680914]
[1718388945555,2.96612,3371.4,3371.1,2.96632]
[1718388945838,2.96612,3371.4,3371.0,2.96647]
[1718388945986,2.96612,3371.4,3371.1,2.96635]
[1718388946380,2.96603,3371.6,3371.1,2.96635]
[1718388946381,2.96605,3371.5,3371.1,2.96635]
[1718388946698,2.96644,3371.1,3369.8,2.076754]
[1718388946898,2.96644,3371.1,3370.4,2.96699]
[1718388947117,2.96644,3371.1,3370.7,2.96665]
[1718388947330,2.96652,3371.0,3370.7,2.96665]
[1718388947614,2.96652,3371.0,3370.8,2.96665]
[1718388948187,2.96652,3371.0,3370.7,2.96673]
[1718388948515,2.96665,3370.8,3370.5,2.9669]
[1718388948994,2.96676,3370.7,3370.5,2.9669]
[1718388949412,2.967,3370.4,3370.2,2.96717]
[1718388949726,5.93266,3371.2,3370.0,2.96734]
[1718388949727,2.96675,3370.7,3370.0,2.96734]
[1718388949901,2.96693,3370.5,3370.2,2.96717]
[1718388950220,2.96661,3370.9,3370.5,2.96691]
[1718388950221,2.96667,3370.8,3370.5,2.96691]
[1718388950383,2.96647,3371.0,3370.6,2.9668]
[1718388950593,2.96658,3370.9,3370.6,2.9668]
[1718388951187,2.96648,3371.0,3370.5,2.9669]
[1718388951583,2.96666,3370.8,3370.6,2.96682]
[1718388951787,2.96666,3370.8,3370.5,2.9669]
[1718388952720,2.96656,3370.9,3370.6,2.96682]
[1718388953821,2.96648,3371.0,3370.2,2.96717]
[1718388953822,2.96666,3370.8,3370.5,2.96689]
[1718388954318,5.93432,3370.3,3369.5,2.96772]
[1718388954518,2.96759,3369.8,3369.2,2.96798]
[1718388954734,2.96745,3369.9,3369.4,2.96782]
[1718388955057,2.96745,3369.9,3369.3,2.96797]
[1718388955058,2.96756,3369.8,3369.3,2.96797]
[1718388955325,2.96756,3369.8,3369.5,2.96778]
[1718388955563,2.96756,3369.8,3369.2,3.557298]
[1718388955564,2.96746,3369.9,3369.6,2.9677]
[1718388955926,2.96801,3369.3,3368.4,5.95833]
[1718388956112,2.96801,3369.3,3369.1,2.96814]
[1718388956311,2.9678,3369.5,3369.1,2.96814]
[1718388956537,2.9678,3369.5,3369.2,2.96806]
[1718388960342,2.9678,3369.5,3369.3,2.96796]
[1718388961250,2.9678,3369.5,3369.2,2.96804]
[1718388961408,2.9681,3369.2,3368.9,2.96824]
[1718388961742,2.96824,3369.0,3368.8,2.96838]
[1718388961917,2.96824,3369.0,3368.4,2.96869]
[1718388962108,2.96774,3369.6,3369.3,2.96793]
[1718388962313,2.96781,3369.5,3369.2,2.96804]
[1718388962632,2.96789,3369.4,3369.2,2.96806]
[1718388963014,2.96789,3369.4,3369.0,2.96823]
[1718388963209,2.96832,3369.0,3368.7,2.96848]
[1718388963520,2.96859,3368.6,3368.2,2.96893]
[1718388963723,2.920309,3368.8,3368.3,2.96882]
[1718388963921,2.96816,3369.1,3368.7,2.96843]
[1718388964125,5.96828,3369.0,3368.7,2.96843]
[1718388965833,7.31,3369.7,3368.3,0.593785]
[1718388966052,2.96782,3369.5,3369.1,2.96814]
[1718388966555,2.96782,3369.5,3369.2,2.96803]
[1718388966735,2.96782,3369.5,3369.1,2.96813]
[1718388966921,2.96761,3369.8,3369.1,0.593635]
[1718388967247,2.96721,3370.2,3369.8,2.96746]
[1718388967248,2.96719,3370.2,3369.8,2.96746]
[1718388967453,2.96738,3370.0,3369.3,2.96793]
[1718388967677,2.96795,3369.4,3369.1,0.593635]
[1718388967991,2.96824,3369.0,3368.3,5.80094]
[1718388968117,2.96824,3369.0,3368.6,2.96851]
[1718388968322,2.96792,3369.4,3368.7,2.96843]
[1718388968648,2.96841,3368.8,3368.6,2.96856]
[1718388968858,2.96841,3368.8,3368.5,2.96866]
[1718388969345,2.96834,3368.9,3368.6,2.96858]
[1718388969649,2.96842,3368.8,3368.6,2.96858]
[1718388970653,2.96842,3368.8,3368.5,2.96866]
[1718388970853,2.96869,3368.5,3368.0,2.96911]
[1718388971013,2.96869,3368.5,3368.2,2.96894]
[1718388971316,9.41804,3369.3,3368.6,2.96854]
[1718388971317,2.96828,3369.0,3368.6,2.96854]
[1718388971516,2.96833,3368.9,3368.6,2.96854]
[1718388972118,2.96806,3369.2,3368.8,2.96841]
[1718388972429,2.96749,3369.9,3368.9,2.33964792]
[1718388972754,2.96749,3369.9,3369.4,2.96786]
[1718388973132,10.0333,3371.0,3369.4,1.43344514]
[1718388973336,10.0333,3371.0,3369.5,1.98344514]
[1718388973337,0.05414076,3370.9,3369.5,1.98344514]
[1718388973533,2.96657,3370.9,3370.6,2.96682]
[1718388973732,2.9663,3371.2,3370.7,2.96669]
[1718388973977,2.9663,3371.2,3370.8,2.96657]
[1718388974229,13.72558,3372.1,3371.4,2.96608]
[1718388974230,13.72559,3372.1,3371.4,2.96608]
[1718388974364,13.72559,3372.1,3370.9,0.05922012]
[1718388974365,2.96576,3371.9,3371.5,2.96602]
[1718388974538,2.96576,3371.9,3371.6,2.96594]
[1718388975775,0.05414076,3371.8,3370.9,2.96653]
[1718388975986,2.96663,3370.9,3370.5,2.9669]
[1718388976135,2.96663,3370.9,3370.4,2.967]
[1718388976340,2.96648,3371.0,3370.6,2.96681]
[1718388976763,0.05414076,3370.9,3370.3,2.96709]
[1718388976969,2.96683,3370.6,3370.0,2.9228]
[1718388977149,3.0,3371.4,3370.5,2.96684]
[1718388977450,2.96624,3371.3,3370.9,2.96655]
[1718388977674,3.0,3371.2,3370.9,2.96655]
[1718388977882,3.0,3389.7,3370.8,2.96665]
[1718388977883,3.45,3372.1,3371.0,2.96646]
[1718388978177,2.96597,3371.6,3371.2,2.96628]
[1718388978495,2.96604,3371.5,3371.2,2.96628]
[1718388978642,2.96561,3372.0,3369.3,4.06463851]
[1718388978643,0.05414076,3371.4,3369.3,4.06463851]
[1718388978842,2.96637,3371.2,3370.9,2.96653]
[1718388979071,2.96643,3371.1,3370.7,2.96666]
[1718388979277,2.9661,3371.5,3370.3,2.96706]
[1718388979443,2.96685,3370.6,3370.0,2.96733]
[1718388979642,2.9671,3370.3,3369.4,2.96786]
[1718388979842,2.96718,3370.2,3369.7,2.96761]
[1718388980074,3.45,3370.8,3369.7,4.40105514]
[1718388980376,2.96692,3370.5,3370.1,2.96726]
[1718388980763,2.96692,3370.5,3369.9,2.96744]
[1718388980978,2.96717,3370.3,3369.9,2.96744]
[1718388981183,2.96742,3370.0,3369.6,2.9677]
[1718388981385,2.96762,3369.7,3369.0,2.96821]
[1718388981587,0.05414076,3369.6,3369.0,2.96821]
[1718388982161,2.9678,3369.5,3369.2,2.96803]
[1718388982563,2.96753,3369.8,3369.5,2.96777]
[1718388982759,2.9672,3370.2,3369.2,0.890447]
[1718388982760,2.96726,3370.2,3369.8,2.96751]
[1718388983060,2.96719,3370.2,3369.8,2.96751]
[1718388983300,2.96736,3370.0,3369.7,2.96761]
[1718388984238,2.96771,3369.6,3369.3,2.96794]
[1718388984378,2.96763,3369.7,3368.9,2.96832]
[1718388984577,2.96763,3369.7,3369.3,2.96789]
[1718388985261,2.96739,3370.0,3369.7,2.96759]
[1718388985463,2.96709,3370.3,3369.8,2.96745]
[1718388985670,2.96718,3370.2,3369.9,2.96743]
[1718388985975,2.96668,3370.8,3369.3,2.96789]
[1718388986180,2.96699,3370.5,3370.1,2.96718]
[1718388986696,2.96699,3370.5,3370.2,2.96716]
[1718388987166,2.96692,3370.5,3370.2,2.96716]
[1718388987365,2.96684,3370.6,3370.2,2.96712]
[1718388987565,2.96675,3370.7,3370.4,2.96699]
[1718388988095,2.96613,3371.4,3370.4,1.73014414]
[1718388988407,2.8664,3372.4,3371.0,2.96642]
[1718388988587,2.9657,3371.9,3371.6,2.96594]
[1718388988773,2.8664,3372.4,3371.6,2.96594]
[1718388988774,2.8664,3373.0,3372.0,2.96559]
[1718388988985,2.96516,3372.5,3372.2,2.9654]
[1718388989291,2.96516,3372.5,3372.2,2.96541]
[1718388989486,2.96516,3372.5,3372.1,2.96549]
[1718388989688,2.96524,3372.4,3372.1,2.96549]
[1718388990113,2.96524,3372.4,3371.0,1.43344514]
[1718388990114,2.96577,3371.8,3371.5,2.96603]
[1718388990417,2.96559,3372.1,3371.5,2.96603]
[1718388990921,2.96564,3372.0,3371.5,2.96603]
[1718388991215,2.96564,3372.0,3371.7,2.96584]
[1718388991765,2.96587,3371.7,3371.4,2.96612]
[1718388991989,2.96615,3371.4,3370.7,2.96666]
[1718388992201,2.96615,3371.4,3370.7,4.40010514]
[1718388992406,2.96615,3371.4,3370.3,2.7416]
[1718388992407,3.02042076,3371.3,3370.5,2.96683]
[1718388992591,2.96661,3370.9,3370.5,2.96683]
[1718388992782,2.96648,3371.0,3370.6,2.96675]
[1718388993495,2.96721,3370.2,3369.8,2.96753]
[1718388993708,2.96692,3370.5,3370.0,2.96735]
[1718388993709,2.967,3370.4,3370.0,2.96735]
[1718388994668,3.0,3371.3,3370.0,2.96735]
[1718388994883,2.96657,3370.9,3370.4,2.96699]
[1718388995293,0.05414076,3370.8,3370.2,2.96709]
[1718388995490,2.96676,3370.7,3370.3,2.96709]
[1718388996001,2.96676,3370.7,3370.4,2.967]
[1718388997231,2.96665,3370.8,3370.5,2.96689]
[1718388997540,2.96643,3371.1,3370.2,2.96715]
[1718388997541,2.96647,3371.1,3370.2,2.96715]
[1718388997838,2.96658,3370.9,3370.5,2.96684]
[1718388998042,2.96658,3370.9,3370.6,2.96679]
[1718388998804,2.96647,3371.0,3370.6,2.96679]
[1718388999070,0.46417846,3371.2,3370.9,2.96651]
[1718388999349,5.96611,3371.5,3370.9,2.96652]
[1718388999350,2.96613,3371.4,3370.9,2.96652]
[1718388999504,2.96613,3371.4,3370.5,2.96689]
[1718388999505,2.96655,3371.0,3370.7,2.96674]
[1718388999908,0.05414076,3370.9,3370.2,2.96715]
[1718389000157,2.96675,3370.7,3370.4,2.96699]
[1718389000454,2.96666,3370.8,3370.5,2.96691]
[1718389001019,2.96675,3370.7,3369.6,3.0]
[1718389001373,2.96725,3370.2,3369.8,2.96745]
[1718389001546,2.96711,3370.3,3369.8,2.96745]
[1718389002162,2.96702,3370.4,3369.6,1.43344514]
[1718389002454,2.96702,3370.4,3370.1,2.96726]
[1718389002749,3.0,3370.8,3369.7,3.51761]
[1718389002750,3.0,3370.8,3370.4,2.96699]
[1718389002952,3.42999762,3371.7,3371.1,2.9663]
[1718389003255,2.96613,3371.4,3371.0,2.96646]
[1718389003553,2.96605,3371.5,3370.8,2.96662]
[1718389003756,2.96614,3371.4,3371.0,2.96646]
[1718389004069,2.9662,3371.4,3371.0,2.96646]
[1718389004219,2.96622,3371.3,3371.0,2.96646]
[1718389004817,2.96662,3370.9,3370.0,2.9699]
[1718389005022,2.96682,3370.7,3370.3,2.96708]
[1718389005248,2.96699,3370.5,3370.0,2.96734]
[1718389005565,2.96699,3370.5,3370.1,2.96726]
[1718389005734,2.967,3370.4,3370.1,2.96726]
[1718389006535,2.96692,3370.5,3370.2,2.96717]
[1718389006768,2.96675,3370.7,3370.2,2.96717]
[1718389006928,2.96638,3371.2,3370.2,2.96717]
[1718389006929,2.9664,3371.1,3370.7,2.96666]
[1718389007150,5.9664,3371.1,3370.7,2.96666]
[1718389007333,3.0,3371.1,3370.8,2.96663]
[1718389007655,2.96622,3371.3,3370.8,2.96658]
[1718389007867,2.96658,3370.9,3370.5,2.9669]
[1718389008074,2.96658,3370.9,3369.9,2.96742]
[1718389008075,2.96683,3370.6,3370.1,2.96718]
[1718389008234,2.96702,3370.4,3370.0,2.96732]
[1718389008621,2.9671,3370.3,3370.0,2.96732]
[1718389009360,2.96692,3370.5,3369.9,2.96743]
[1718389009522,3.02115076,3370.4,3370.0,2.96728]
[1718389010655,2.96692,3370.5,3370.0,7.96734]
[1718389010656,2.96691,3370.5,3370.0,7.96734]
[1718389011858,3.02114076,3370.4,3370.0,7.96733]
[1718389012228,2.9671,3370.3,3370.0,7.96733]
[1718389012625,2.96702,3370.4,3370.0,7.96733]
[1718389014538,2.96702,3370.4,3370.1,2.96724]
[1718389014739,2.96693,3370.5,3370.2,2.96718]
[1718389015562,2.9664,3371.1,3370.5,2.96684]
[1718389015868,5.93454,3370.1,3370.0,5.0]
[1718389016076,8.90181,3370.1,3370.0,5.0]
[1718389016245,11.90181,3370.1,3370.0,5.0]
[1718389017067,14.86908,3370.1,3370.0,5.0]
[1718389017234,11.90181,3370.1,3370.0,5.0]
[1718389017639,8.93454,3370.1,3370.0,5.0]
[1718389018059,5.96727,3370.1,3370.0,5.0]
[1718389018261,8.93454,3370.1,3370.0,5.0]
[1718389019467,11.90181,3370.1,3370.0,5.0]
[1718389019882,19.75152514,3370.1,3370.0,5.0]
[1718389020196,25.60039514,3370.1,3370.0,5.0]
[1718389020839,22.63312514,3370.1,3370.0,5.0]
[1718389021058,26.11363378,3370.1,3370.0,5.0]
[1718389021867,23.14636378,3370.1,3370.0,5.0]
[1718389022448,22.63312514,3370.1,3370.0,5.0]
[1718389022878,21.19968,3370.1,3370.0,5.0]
[1718389023106,15.35081,3370.1,3370.0,5.0]
[1718389023943,12.38354,3370.1,3370.0,5.0]
[1718389024150,2.96727,3370.1,3370.0,5.0]
[1718389024382,5.70477,3370.7,3370.0,5.5]
[1718389024383,2.96707,3370.4,3370.0,5.5]
[1718389024681,5.93454,3370.1,3370.0,5.0]
[1718389024885,8.90181,3370.1,3370.0,5.0]
[1718389025482,2.96727,3370.1,3370.0,5.0]
[1718389025892,2.96716,3370.3,3370.0,5.0]
[1718389026248,2.96727,3370.1,3370.0,5.0]
[1718389026481,5.93454,3370.1,3370.0,5.0]
[1718389027146,8.90181,3370.1,3370.0,5.0]
[1718389027341,11.90181,3370.1,3370.0,5.0]
[1718389028702,19.26979514,3370.1,3370.0,5.0]
[1718389028852,19.24482514,3370.1,3370.0,5.0]
[1718389029186,22.21209514,3370.1,3370.0,5.0]
[1718389030887,22.72535344,3370.1,3370.0,5.0]
[1718389031096,23.03306129,3370.1,3370.0,5.0]
[1718389031854,26.00033129,3370.1,3370.0,5.0]
[1718389032664,26.0003346,3370.1,3370.0,5.0]
[1718389032858,26.00033527,3370.1,3370.0,5.0]
[1718389033599,25.48705864,3370.1,3370.0,5.0]
[1718389033756,2.96901,3368.2,3367.7,2.96934]
[1718389033957,2.96885,3368.3,3367.7,2.96934]
[1718389033958,2.96885,3368.3,3367.9,2.96916]
[1718389037452,2.96878,3368.4,3368.0,2.9691]
[1718389038098,2.96878,3368.4,3367.9,2.96916]
[1718389038099,2.96824,3369.0,3368.1,1.43344514]
[1718389038257,5.96799,3369.3,3368.5,2.9307]
[1718389038258,2.96807,3369.2,3368.5,2.9307]
[1718389038463,2.96824,3369.0,3368.5,2.9307]
[1718389038794,2.96847,3368.8,3368.5,3.872538]
[1718389039184,2.96847,3368.8,3368.5,0.941838]
[1718389039496,2.96849,3368.8,3368.2,2.96893]
[1718389039686,2.96849,3368.8,3368.4,2.96876]
[1718389039687,2.96852,3368.7,3368.4,2.96876]
[1718389040687,2.96783,3369.5,3368.0,5.80817]
[1718389040688,3.449,3369.9,3368.5,1.43344514]
[1718389040887,2.96762,3369.7,3369.0,2.96823]
[1718389041072,2.96748,3369.9,3369.3,2.96789]
[1718389041275,2.96736,3370.0,3369.5,2.96778]
[1718389041672,6.4159,3370.6,3369.7,2.96761]
[1718389041673,2.96695,3370.5,3369.7,2.96761]
[1718389041987,2.96683,3370.6,3369.9,2.96736]
[1718389042295,2.96693,3370.5,3370.0,2.96728]
[1718389043075,2.96693,3370.5,3370.1,2.9672]
[1718389043268,2.96693,3370.5,3370.0,2.96728]
[1718389043594,2.96633,3371.2,3370.1,1.49278742]
[1718389043799,2.9664,3371.1,3370.4,2.96698]
[1718389044000,2.9664,3371.1,3370.5,0.0593321]
[1718389044512,3.02062076,3371.0,3370.6,2.96682]
[1718389045010,2.9664,3371.1,3370.7,2.96674]
[1718389045373,3.0,3371.0,3370.7,2.96674]
[1718389046293,3.449,3371.6,3370.9,2.96656]
[1718389046468,2.96641,3371.1,3370.7,3.560093]
[1718389046667,2.96637,3371.2,3370.7,2.96673]
[1718389046885,2.96596,3371.6,3371.0,2.96647]
[1718389047109,2.96603,3371.5,3371.2,2.96628]
[1718389047309,2.96596,3371.6,3371.2,2.96628]
[1718389047469,2.96595,3371.6,3371.2,2.96629]
[1718389048510,0.46412762,3371.7,3371.4,2.96605]
[1718389048882,0.46412762,3371.7,3371.5,2.96603]
[1718389049268,0.46412762,3371.7,3371.1,2.96638]
[1718389049269,0.46412762,3371.7,3371.4,2.96611]
[1718389049473,3.48413838,3371.7,3371.3,2.9662]
[1718389049670,0.46412762,3371.7,3371.4,2.9661]
[1718389050206,0.46412762,3371.7,3371.5,2.96595]
[1718389050905,0.46412762,3371.7,3371.6,2.96595]
[1718389051105,2.96556,3372.1,3371.6,2.96595]
[1718389051310,0.05414076,3372.0,3370.9,3.009]
[1718389051471,2.96562,3372.0,3370.9,3.45324451]
[1718389051677,0.05414076,3371.9,3370.9,3.45324451]
[1718389051996,0.05414076,3371.9,3371.5,2.96603]
[1718389052196,3.01982076,3371.9,3371.5,2.96603]
[1718389052866,2.96622,3371.3,3371.0,2.9664]
[1718389053074,2.9656,3372.0,3370.6,2.96682]
[1718389053075,2.96647,3371.1,3370.6,2.96682]
[1718389053274,0.05414076,3371.0,3370.5,2.96691]
[1718389053480,2.96648,3371.0,3370.5,2.96691]
[1718389053975,2.96648,3371.0,3370.4,2.96699]
[1718389053976,2.96669,3370.8,3370.4,2.96699]
[1718389054284,2.96669,3370.8,3370.5,2.96689]
[1718389055691,3.02094076,3370.7,3369.8,2.9807]
[1718389055892,2.96737,3370.0,3369.7,2.9676]
[1718389056517,2.96714,3370.3,3369.7,2.96754]
[1718389056720,2.96714,3370.3,3369.9,2.96737]
[1718389057082,2.96719,3370.2,3369.9,2.96737]
[1718389057818,2.96686,3370.6,3370.2,2.96713]
[1718389059786,2.96692,3370.5,3370.2,2.96713]
[1718389060586,2.967,3370.4,3369.8,2.96752]
[1718389060796,2.967,3370.4,3370.0,2.96735]
[1718389061409,2.9673,3370.1,3369.6,2.96769]
[1718389061731,2.9673,3370.1,3369.8,2.96753]
[1718389062316,2.96719,3370.2,3369.8,2.96753]
[1718389062525,2.96719,3370.2,3369.9,2.96744]
[1718389064597,3.0,3371.1,3369.3,2.8182]
[1718389064907,2.96788,3369.4,3369.1,2.96814]